bitfinex-derivatives/quotes_ETHF0:USTF0_20250427
["timestamp","ask_amount","ask_price","bid_price","bid_amount"]
[1745752406249,7.3654,1807.3,1807.0,3.2078]
[1745752406449,1.5818,1807.2,1807.0,3.2078]
[1745752406762,1.5818,1807.2,1806.9,43.28464]
[1745752406763,3.505,1807.1,1806.9,2.48464]
[1745752406953,1.7117,1807.0,1806.9,2.48464]
[1745752407155,1.7117,1807.0,1806.9,6.20664]
[1745752408162,3.505,1807.1,1806.9,6.20664]
[1745752408362,3.505,1807.1,1807.0,1.6121]
[1745752409258,3.505,1807.1,1807.0,5.3341]
[1745752414060,3.505,1807.1,1807.0,3.722]
[1745752416359,11.7128,1807.1,1807.0,3.722]
[1745752417162,11.7128,1807.1,1806.7,2.503]
[1745752417356,2.509,1807.0,1806.7,2.503]
[1745752417558,1.7106,1806.9,1806.7,2.503]
[1745752417863,3.512,1806.8,1806.7,2.503]
[1745752418163,3.512,1806.8,1806.7,6.225]
[1745752421563,70.621,1806.8,1806.7,3.722]
[1745752421769,73.92492222,1806.8,1806.2,0.02919]
[1745752422067,3.2078,1806.3,1806.2,0.02919]
[1745752422268,6.7198,1806.3,1806.2,0.02919]
[1745752422564,6.7198,1806.3,1805.4,16.55059452]
[1745752422565,27.9129064,1806.3,1805.4,0.92679452]
[1745752422862,27.9129064,1806.3,1805.3,9.81264645]
[1745752422863,3.2078,1805.7,1805.3,9.81264645]
[1745752423065,5.1674,1805.6,1805.3,12.26984645]
[1745752423268,5.1674,1805.6,1805.3,9.81264645]
[1745752423573,5.1674,1805.6,1805.3,10.67094645]
[1745752423866,3.512,1805.5,1805.4,3.2078]
[1745752424067,3.512,1805.5,1805.4,4.8067]
[1745752424259,3.512,1805.5,1805.4,8.5287]
[1745752425161,3.512,1805.5,1805.4,5.3209]
[1745752425465,3.512,1805.5,1805.4,3.722]
[1745752426368,3.512,1805.5,1805.4,4.5803]
[1745752427267,3.2078,1805.7,1805.4,4.5803]
[1745752427469,3.513,1805.9,1805.5,1.7116]
[1745752427670,3.513,1805.9,1805.5,2.5499]
[1745752427967,3.513,1805.9,1805.5,3.4082]
[1745752428166,3.513,1805.9,1805.6,3.2078]
[1745752428467,3.513,1805.9,1805.7,1.7116]
[1745752428866,3.513,1805.9,1805.7,2.5699]
[1745752429069,3.513,1805.9,1805.8,0.8266]
[1745752430067,3.513,1805.9,1805.8,5.4069]
[1745752430768,3.513,1805.9,1805.8,3.722]
[1745752431272,8.513,1805.9,1805.8,3.722]
[1745752431569,12.5449,1805.9,1805.8,3.722]
[1745752431767,13.44918732,1805.9,1805.8,3.722]
[1745752432666,7.5449,1805.9,1805.8,3.722]
[1745752433559,6.7218,1805.9,1805.8,3.722]
[1745752435065,3.2078,1805.9,1805.8,3.722]
[1745752435267,3.2078,1805.9,1805.8,4.5803]
[1745752435471,3.514,1805.9,1805.8,4.5803]
[1745752435974,3.2078,1806.1,1805.8,4.5803]
[1745752436173,5.163,1806.0,1805.8,4.5803]
[1745752436373,5.163,1806.0,1805.9,1.5805]
[1745752436774,5.163,1806.0,1805.8,4.5803]
[1745752438671,5.163,1806.0,1805.8,3.722]
[1745752439071,10.163,1806.0,1805.8,3.722]
[1745752440077,5.163,1806.0,1805.8,3.722]
[1745752440672,5.163,1806.0,1805.9,1.7279]
[1745752441084,5.163,1806.0,1805.9,5.4499]
[1745752442885,1.649,1806.0,1805.9,5.4499]
[1745752443073,5.163,1806.0,1805.9,5.4499]
[1745752445284,5.163,1806.0,1805.9,3.722]
[1745752447285,8.3708,1806.0,1805.9,3.722]
[1745752448285,8.3708,1806.0,1805.9,4.5803]
[1745752448489,6.7218,1806.0,1805.9,4.5803]
[1745752449186,3.514,1806.0,1805.9,4.5803]
[1745752449389,6.7218,1806.0,1805.9,4.5803]
[1745752449986,3.514,1806.0,1805.9,4.5803]
[1745752450184,1.682,1806.1,1805.9,4.5803]
[1745752450381,6.8528,1806.0,1805.9,4.5803]
[1745752453690,3.645,1806.0,1805.9,4.5803]
[1745752453894,6.8528,1806.0,1805.9,4.5803]
[1745752454192,6.8528,1806.0,1805.9,5.4264]
[1745752455591,3.645,1806.0,1805.9,5.4264]
[1745752455779,6.8528,1806.0,1805.9,5.4264]
[1745752456192,3.645,1806.0,1805.9,5.4264]
[1745752456395,6.8528,1806.0,1805.9,5.4264]
[1745752456791,3.645,1806.0,1805.9,5.4264]
[1745752456993,6.8528,1806.0,1805.9,5.4264]
[1745752459897,3.645,1806.0,1805.9,5.4264]
[1745752460094,6.8528,1806.0,1805.9,5.4264]
[1745752461707,6.8528,1806.0,1805.9,3.722]
[1745752462591,6.94895628,1806.0,1805.9,3.722]
[1745752463814,6.8528,1806.0,1805.9,3.722]
[1745752464102,6.94896514,1806.0,1805.9,3.722]
[1745752465004,6.8528,1806.0,1805.9,3.722]
[1745752465297,6.94896417,1806.0,1805.9,3.722]
[1745752465798,3.74116417,1806.0,1805.9,3.722]
[1745752466000,6.94896417,1806.0,1805.9,3.722]
[1745752467002,6.9489627,1806.0,1805.9,3.722]
[1745752469603,6.8528,1806.0,1805.9,3.722]
[1745752469803,6.8528,1806.0,1805.9,4.5202]
[1745752470103,6.94896433,1806.0,1805.9,4.5202]
[1745752470604,6.8528,1806.0,1805.9,5.3785]
[1745752472903,3.2078,1806.0,1805.9,5.3785]
[1745752473103,3.645,1806.1,1805.9,9.5202]
[1745752473301,3.645,1806.1,1806.0,4.848]
[1745752473802,3.645,1806.1,1806.0,9.848]
[1745752474205,3.645,1806.1,1806.0,13.57]
[1745752477593,1.5631,1806.6,1806.0,13.57]
[1745752477910,3.607,1806.5,1806.2,3.2078]
[1745752478103,3.607,1806.5,1806.3,2.5047]
[1745752478402,3.607,1806.5,1806.4,1.7102]
[1745752479402,3.607,1806.5,1806.4,5.4322]
[1745752482513,1.5631,1806.6,1806.4,5.4322]
[1745752482807,1.5631,1806.6,1806.5,2.4702]
[1745752483013,5.1701,1806.6,1806.5,2.4702]
[1745752483309,3.607,1806.6,1806.5,6.1922]
[1745752483905,3.2078,1806.7,1806.5,6.1922]
[1745752484100,3.2078,1806.7,1806.6,1.6265]
[1745752484311,6.8148,1806.7,1806.6,2.4077]
[1745752489404,3.607,1806.7,1806.6,5.6155]
[1745752489612,3.607,1806.7,1806.6,2.4077]
[1745752491314,3.607,1806.7,1806.6,5.6155]
[1745752491915,66.135,1807.2,1806.6,5.6155]
[1745752492111,3.606,1807.0,1806.7,1.6933]
[1745752493412,1.6503,1806.9,1806.7,1.6933]
[1745752494217,1.6503,1806.9,1806.7,5.4153]
[1745752495214,1.6503,1806.9,1806.8,1.7234]
[1745752495814,3.606,1807.0,1806.8,1.7234]
[1745752496014,0.8268,1807.1,1806.9,1.6322]
[1745752496015,2.5121,1807.1,1806.9,1.6322]
[1745752496212,3.606,1807.0,1806.9,1.6322]
[1745752496516,5.2913,1807.0,1806.9,0.8038]
[1745752496810,5.38752006,1807.0,1806.8,3.722]
[1745752497015,1.6853,1806.9,1806.8,0.95394119]
[1745752497217,1.78151752,1806.9,1806.8,0.95394119]
[1745752497812,1.6853,1806.9,1806.8,0.95394119]
[1745752498416,1.78151539,1806.9,1806.8,0.95394119]
[1745752498617,1.6853,1806.9,1806.8,0.95394119]
[1745752498816,1.78151579,1806.9,1806.8,0.95394119]
[1745752499112,6.78151579,1806.9,1806.8,3.722]
[1745752499309,6.78150949,1806.9,1806.8,0.95394119]
[1745752499509,1.78150949,1806.9,1806.8,0.95394119]
[1745752499706,1.78150764,1806.9,1806.8,0.95394119]
[1745752500319,6.78150764,1806.9,1806.4,4.8311]
[1745752500514,4.97350764,1806.8,1806.4,3.2078]
[1745752500815,3.70220764,1806.7,1806.4,3.2078]
[1745752501016,1.6899,1806.6,1806.4,3.2078]
[1745752501216,1.6899,1806.6,1806.4,6.9298]
[1745752501413,0.7893,1806.5,1806.4,6.9298]
[1745752501608,0.7893,1806.5,1806.4,3.722]
[1745752501820,5.88547975,1806.5,1806.2,3.2078]
[1745752502017,5.9844,1806.4,1806.2,3.2078]
[1745752502219,1.5855,1806.3,1806.2,6.9298]
[1745752505919,3.607,1806.3,1806.2,8.5941]
[1745752507311,3.607,1806.3,1806.2,6.9298]
[1745752508611,5.3213,1806.3,1806.2,6.9298]
[1745752510121,5.3213,1806.3,1806.2,8.6327]
[1745752510314,3.607,1806.3,1806.2,8.6327]
[1745752510513,3.2078,1806.6,1806.2,8.6327]
[1745752510815,5.176,1806.5,1806.3,1.6662]
[1745752511319,1.584,1806.5,1806.4,1.6588]
[1745752511520,5.176,1806.5,1806.4,1.6588]
[1745752512119,5.176,1806.5,1806.4,5.3808]
[1745752512723,5.176,1806.5,1806.4,4.583]
[1745752514121,5.176,1806.5,1806.4,3.722]
[1745752517823,5.27209528,1806.5,1806.4,3.722]
[1745752518725,10.27209528,1806.5,1806.4,1.46801859]
[1745752518926,5.27209528,1806.5,1806.4,1.46801859]
[1745752519228,5.27208806,1806.5,1806.2,3.2078]
[1745752519428,2.463,1806.4,1806.2,3.2078]
[1745752519631,1.6027,1806.3,1806.2,4.8763]
[1745752519823,3.592,1806.5,1806.2,4.8763]
[1745752520024,5.2599,1806.5,1806.3,1.6762]
[1745752520320,5.2599,1806.5,1806.4,0.8087]
[1745752520524,5.2599,1806.5,1806.4,1.6086]
[1745752520727,5.2599,1806.5,1806.4,3.2848]
[1745752521130,5.2599,1806.5,1806.4,7.0068]
[1745752521426,5.35598212,1806.5,1806.4,3.722]
[1745752522328,5.35598212,1806.5,1806.4,0.95319009]
[1745752522527,5.35598212,1806.5,1806.2,3.2078]
[1745752522830,6.59948212,1806.4,1805.9,1.6762]
[1745752523122,3.68808212,1806.3,1806.0,3.2078]
[1745752523316,3.592,1806.3,1806.0,3.2078]
[1745752523520,1.7121,1806.2,1806.0,3.2078]
[1745752523729,1.7121,1806.2,1806.0,4.7689]
[1745752524024,3.2078,1806.4,1806.0,4.7689]
[1745752524327,3.592,1806.3,1806.1,2.3564]
[1745752524520,4.9199,1806.6,1806.2,2.3863]
[1745752524720,3.592,1806.5,1806.3,1.5611]
[1745752525328,5.3041,1806.5,1806.4,0.7953]
[1745752525726,5.3041,1806.5,1806.3,3.722]
[1745752526027,2.4643,1806.4,1806.3,3.722]
[1745752526232,3.2078,1806.6,1806.3,3.722]
[1745752526527,3.592,1806.5,1806.4,1.6294]
[1745752526721,3.592,1806.5,1806.4,2.4689]
[1745752527121,3.592,1806.5,1806.4,6.1909]
[1745752527728,5.2355,1806.5,1806.4,6.1909]
[1745752528026,5.33156825,1806.5,1806.4,6.1909]
[1745752528327,10.33156825,1806.5,1806.4,0.9530981]
[1745752528529,10.33156825,1806.5,1806.2,0.8252]
[1745752528733,6.57066825,1806.4,1806.2,0.8252]
[1745752528929,1.77966825,1806.3,1806.2,0.8252]
[1745752529128,1.77966825,1806.3,1806.2,4.5472]
[1745752529533,1.6836,1806.3,1806.2,4.5472]
[1745752529926,1.77966123,1806.3,1806.2,4.5472]
[1745752530526,3.2078,1806.4,1806.2,6.1524]
[1745752530727,3.592,1806.5,1806.3,1.6052]
[1745752530928,3.592,1806.5,1806.4,0.8204]
[1745752531130,3.6880757,1806.5,1806.4,4.5424]
[1745752532534,3.592,1806.5,1806.4,4.5424]
[1745752538836,1.7226,1806.6,1806.4,4.5424]
[1745752539036,3.2078,1807.0,1806.5,2.466]
[1745752539239,3.2078,1807.0,1806.6,4.8266]
[1745752539240,3.71005544,1806.9,1806.6,4.8266]
[1745752539539,3.614,1806.8,1806.7,1.6188]
[1745752539838,3.614,1806.8,1806.7,2.4833]
[1745752540238,3.614,1806.8,1806.7,6.2053]
[1745752542335,3.614,1806.8,1806.7,3.722]
[1745752542533,3.71007702,1806.8,1806.7,3.722]
[1745752542732,5.41497702,1806.8,1806.7,3.722]
[1745752543339,5.3189,1806.8,1806.7,3.722]
[1745752543543,5.41497791,1806.8,1806.7,5.332]
[1745752543941,3.614,1806.8,1806.7,5.332]
[1745752546234,4.8135,1807.1,1806.7,5.332]
[1745752546540,3.71008778,1807.0,1806.8,2.5134]
[1745752546740,3.614,1807.0,1806.9,1.6883]
[1745752546944,3.614,1807.0,1806.9,2.5388]
[1745752548141,3.614,1807.0,1806.9,6.2608]
[1745752548337,5.3139,1807.0,1806.9,6.2608]
[1745752548645,5.4099895,1807.0,1806.9,6.2608]
[1745752548843,5.40998944,1807.0,1806.9,6.2608]
[1745752549141,3.614,1807.0,1806.9,6.2608]
[1745752552046,5.1954,1807.0,1806.9,6.2608]
[1745752553339,3.614,1807.0,1806.9,6.2608]
[1745752554943,3.2078,1807.1,1806.9,6.2608]
[1745752555148,3.613,1807.0,1806.9,4.5725]
[1745752555851,3.2078,1807.1,1806.9,4.5725]
[1745752556154,3.613,1807.0,1806.9,4.5725]
[1745752558851,62.141,1807.2,1806.9,9.5725]
[1745752559050,3.613,1807.1,1806.9,4.5725]
[1745752559253,3.613,1807.1,1807.0,3.2078]
[1745752559450,3.2078,1807.5,1807.0,3.2078]
[1745752559644,3.613,1807.4,1807.1,0.8151]
[1745752559845,2.10187059,1807.6,1807.2,0.8118]
[1745752560046,2.10187059,1807.6,1807.2,4.5338]
[1745752560246,3.613,1807.5,1807.2,4.5338]
[1745752560441,3.613,1807.4,1807.2,4.5338]
[1745752560652,3.613,1807.4,1807.2,7.7416]
[1745752562153,1.6541,1807.3,1807.2,4.0196]
[1745752562652,3.613,1807.4,1807.2,4.0196]
[1745752563353,5.3188,1807.4,1807.2,4.0196]
[1745752564152,3.613,1807.3,1807.2,7.7416]
[1745752568859,3.613,1807.3,1807.2,9.3431]
[1745752573662,3.608,1807.3,1807.2,9.3431]
[1745752575363,3.608,1807.3,1807.2,6.9298]
[1745752575661,8.70401033,1807.3,1807.2,6.9298]
[1745752576249,7.33,1807.3,1807.2,3.2078]
[1745752577169,3.608,1807.3,1807.2,3.2078]
[1745752581167,3.608,1807.3,1807.2,6.9298]
[1745752581364,1.7058,1807.6,1807.2,6.9298]
[1745752581568,3.608,1807.3,1807.2,6.9298]
[1745752583973,1.7058,1807.6,1807.2,6.9298]
[1745752584267,3.608,1807.5,1807.2,6.9298]
[1745752584968,1.6387,1807.4,1807.2,6.9298]
[1745752585170,2.4451,1807.4,1807.2,3.2078]
[1745752585362,3.2295,1807.4,1807.2,3.2078]
[1745752585563,1.6387,1807.3,1807.2,3.2078]
[1745752587071,1.6387,1807.3,1807.2,6.9298]
[1745752588075,0.8064,1807.4,1807.2,6.9298]
[1745752588272,1.5979,1807.4,1807.2,6.9298]
[1745752593577,1.5979,1807.4,1807.2,3.722]
[1745752593777,1.5979,1807.4,1807.2,6.9298]
[1745752599873,1.5979,1807.4,1807.3,2.4277]
[1745752600179,1.5979,1807.4,1807.3,6.1497]
[1745752600881,1.5979,1807.4,1807.3,6.9602]
[1745752601182,1.5979,1807.4,1807.3,3.2382]
[1745752603084,1.5979,1807.4,1807.3,6.9602]
[1745752605184,1.5979,1807.4,1807.3,3.2382]
[1745752606182,1.5979,1807.4,1807.3,6.9602]
[1745752608383,1.5979,1807.4,1807.3,3.722]
[1745752609080,1.5979,1807.4,1807.2,3.2078]
[1745752609282,0.8197,1807.3,1807.2,3.2078]
[1745752610084,0.8197,1807.3,1807.0,4.7792]
[1745752610284,5.223,1807.2,1807.0,4.7792]
[1745752610483,5.223,1807.2,1807.1,1.5714]
[1745752612288,3.582,1807.2,1807.1,1.5714]
[1745752616289,8.582,1807.2,1807.0,6.9298]
[1745752616485,3.3295,1807.1,1807.0,6.9298]
[1745752616992,3.42554483,1807.1,1807.0,6.9298]
[1745752617284,3.42554483,1807.1,1807.0,3.2078]
[1745752617691,3.3295,1807.1,1807.0,3.2078]
[1745752618391,3.3295,1807.1,1806.8,3.2078]
[1745752618693,1.70803125,1807.0,1806.7,1.6843]
[1745752618895,3.582,1806.9,1806.7,1.6843]
[1745752619194,1.612,1806.8,1806.7,5.4063]
[1745752621590,1.612,1806.8,1806.7,3.722]
[1745752621890,3.37411876,1806.8,1806.7,3.722]
[1745752622993,11.58191876,1806.8,1806.7,0.95432424]
[1745752623492,11.58191465,1806.8,1806.7,0.95432424]
[1745752623893,11.58191465,1806.8,1806.3,4.8694]
[1745752624096,1.82491465,1806.7,1806.3,4.8694]
[1745752624392,3.583,1806.6,1806.3,8.5914]
[1745752624587,1.7289,1806.5,1806.3,8.5914]
[1745752624790,3.583,1806.6,1806.4,1.5746]
[1745752625188,3.583,1806.6,1806.4,5.2966]
[1745752625694,1.7289,1806.5,1806.4,5.2966]
[1745752625895,2.5917,1806.5,1806.4,5.2966]
[1745752626906,2.5917,1806.5,1806.4,3.722]
[1745752628807,1.7289,1806.5,1806.4,3.722]
[1745752629006,1.7289,1806.5,1806.4,5.3175]
[1745752629610,3.583,1806.6,1806.4,5.3175]
[1745752629801,5.2053,1806.6,1806.5,1.6134]
[1745752630109,5.2053,1806.6,1806.5,5.3354]
[1745752632211,5.2053,1806.6,1806.5,3.722]
[1745752632910,5.30130638,1806.6,1806.5,2.1781]
[1745752633111,5.30130638,1806.6,1806.5,1.5439]
[1745752633311,5.30130638,1806.6,1806.5,0.6342]
[1745752633810,5.2053,1806.6,1806.5,0.6342]
[1745752634008,5.30130841,1806.6,1806.5,0.6342]
[1745752634812,5.2053,1806.6,1806.5,0.6342]
[1745752635009,3.583,1806.6,1806.5,2.2852]
[1745752635414,6.0975,1806.6,1806.5,2.2852]
[1745752635714,5.2603,1806.6,1806.5,2.2852]
[1745752635914,3.2078,1806.8,1806.5,2.2852]
[1745752636109,3.561,1806.7,1806.6,1.5824]
[1745752636812,3.561,1806.7,1806.6,2.3999]
[1745752637215,3.561,1806.7,1806.6,0.8175]
[1745752637512,5.29661421,1806.7,1806.6,0.8175]
[1745752638911,5.29661234,1806.7,1806.6,0.8175]
[1745752640217,5.2006,1806.7,1806.6,0.8175]
[1745752640517,5.29661118,1806.7,1806.6,0.8175]
[1745752643318,5.29661442,1806.7,1806.6,0.8175]
[1745752643523,5.29661442,1806.7,1806.6,2.4291]
[1745752644812,5.2006,1806.7,1806.6,2.4291]
[1745752645019,5.29661352,1806.7,1806.6,2.4291]
[1745752645713,1.73561352,1806.7,1806.6,2.4291]
[1745752645921,5.29661352,1806.7,1806.6,2.4291]
[1745752646425,5.29660983,1806.7,1806.6,2.4291]
[1745752647317,3.561,1806.7,1806.6,2.4291]
[1745752651420,3.2078,1806.8,1806.6,2.4291]
[1745752651617,3.2078,1806.8,1806.7,1.6682]
[1745752651916,6.7688,1806.8,1806.7,2.5205]
[1745752652122,6.7688,1806.8,1806.7,6.2425]
[1745752652323,8.4901,1806.8,1806.7,6.2425]
[1745752652924,6.7688,1806.8,1806.7,6.2425]
[1745752656324,3.2078,1806.8,1806.7,6.2425]
[1745752656525,6.7688,1806.8,1806.7,6.2425]
[1745752657819,62.113,1807.0,1806.7,6.2425]
[1745752658025,3.561,1806.9,1806.8,1.6077]
[1745752659128,3.561,1806.9,1806.8,5.3297]
[1745752663830,3.552,1807.0,1806.8,13.5375]
[1745752664131,3.552,1807.0,1806.9,2.5135]
[1745752664327,0.43820859,1807.4,1806.9,2.5135]
[1745752664528,3.552,1807.3,1807.1,3.2078]
[1745752664731,3.552,1807.3,1807.2,2.5135]
[1745752665130,3.552,1807.3,1807.2,6.2355]
[1745752667932,16.42943219,1807.6,1807.2,6.2355]
[1745752668135,3.551,1807.5,1807.3,5.6358]
[1745752668330,3.551,1807.5,1807.4,1.5925]
[1745752669026,67.029,1807.7,1807.4,1.5925]
[1745752669228,3.551,1807.6,1807.5,0.8117]
[1745752669428,5.1454,1807.6,1807.5,0.8117]
[1745752671636,3.551,1807.6,1807.5,0.8117]
[1745752672334,5.2217,1807.6,1807.5,0.8117]
[1745752674641,5.2217,1807.6,1807.3,44.8433]
[1745752674835,5.2217,1807.6,1807.4,0.859]
[1745752675035,5.2217,1807.6,1807.4,2.4562]
[1745752676033,5.2217,1807.6,1807.5,1.5815]
[1745752680138,1.6707,1807.6,1807.5,1.5815]
[1745752680332,3.2078,1808.0,1807.5,1.5815]
[1745752680538,3.551,1807.7,1807.6,0.8126]
[1745752680843,3.551,1807.7,1807.6,4.0204]
[1745752683340,3.551,1807.7,1807.6,9.0204]
[1745752684747,1.6994,1808.0,1807.6,9.0204]
[1745752684937,3.55,1807.9,1807.8,3.2078]
[1745752685137,3.55,1807.9,1807.8,6.9298]
[1745752691952,1.6661,1808.1,1807.8,6.9298]
[1745752692142,1.6661,1808.1,1808.0,3.2078]
[1745752692448,5.2021,1808.1,1808.0,3.2078]
[1745752692649,5.2021,1808.1,1808.0,4.0544]
[1745752693250,5.2021,1808.1,1808.0,7.7764]
[1745752694149,5.2021,1808.1,1808.0,4.0544]
[1745752696153,5.2021,1808.1,1808.0,7.7764]
[1745752697153,1.6661,1808.1,1808.0,7.7764]
[1745752697356,5.2011,1808.1,1808.0,7.7764]
[1745752699263,5.2011,1808.1,1808.0,6.9298]
[1745752700260,5.2011,1808.1,1808.0,3.2078]
[1745752703064,10.2011,1808.1,1807.8,5.958]
[1745752703260,2.4472,1808.0,1807.8,5.6148]
[1745752703459,1.614,1807.9,1807.8,5.6148]
[1745752703656,2.4232,1807.9,1807.8,5.6148]
[1745752707765,2.4232,1807.9,1807.7,3.3113]
[1745752707961,5.1958,1807.8,1807.7,2.4721]
[1745752708863,3.535,1807.8,1807.7,2.4721]
[1745752710168,3.535,1807.8,1807.7,6.1941]
[1745752710970,3.535,1807.8,1807.7,9.4019]
[1745752716079,3.535,1807.8,1807.7,5.6799]
[1745752717975,3.536,1807.9,1807.7,5.6799]
[1745752718278,3.536,1807.9,1807.8,2.4956]
[1745752719280,3.536,1807.9,1807.8,6.2176]
[1745752724685,1.7208,1808.1,1807.8,6.2176]
[1745752724885,3.522,1808.0,1807.9,4.7959]
[1745752725285,3.522,1808.0,1807.9,8.5179]
[1745752726986,1.7208,1808.1,1807.9,8.5179]
[1745752727188,5.2428,1808.1,1808.0,1.5881]
[1745752728086,5.2428,1808.1,1808.0,5.3101]
[1745752731188,5.2428,1808.1,1808.0,1.5881]
[1745752733691,62.105,1808.4,1808.0,1.5881]
[1745752733891,6.0269,1808.4,1808.1,4.0391]
[1745752734088,6.0269,1808.4,1808.2,1.6797]
[1745752736892,5.2222,1808.4,1808.2,1.6797]
[1745752737393,3.521,1808.5,1808.3,3.2078]
[1745752737591,5.2045,1808.5,1808.3,3.2078]
[1745752737892,1.6835,1808.4,1808.3,3.2078]
[1745752740796,1.6835,1808.4,1808.2,1.6797]
[1745752740994,0.802,1808.3,1808.2,1.6797]
[1745752741883,0.802,1808.3,1808.2,2.5072]
[1745752742399,1.6835,1808.4,1808.2,2.5072]
[1745752742893,1.6835,1808.4,1808.3,1.6195]
[1745752743397,3.521,1808.5,1808.3,1.6195]
[1745752743598,3.521,1808.5,1808.4,0.8029]
[1745752743790,5.103,1808.5,1808.4,0.8029]
[1745752744394,5.103,1808.5,1808.4,2.4224]
[1745752747298,3.521,1808.5,1808.4,2.4224]
[1745752748399,3.521,1808.5,1808.3,3.2078]
[1745752748898,3.521,1808.5,1808.3,5.6754]
[1745752750203,3.521,1808.5,1808.3,3.2078]
[1745752750399,2.5264,1808.4,1808.3,3.2078]
[1745752751101,6.2484,1808.4,1808.3,3.2078]
[1745752752098,15.2846,1808.4,1808.0,0.8031]
[1745752752299,1.5951,1808.3,1808.0,0.8031]
[1745752752501,3.521,1808.2,1808.0,0.8031]
[1745752752701,1.5951,1808.1,1808.0,0.8031]
[1745752753202,1.5951,1808.1,1808.0,3.2602]
[1745752753896,3.521,1808.2,1808.0,3.2602]
[1745752754101,3.521,1808.2,1808.1,1.6246]
[1745752757704,3.521,1808.2,1808.1,4.8324]
[1745752758008,2.85725774,1808.2,1808.1,4.8324]
[1745752768008,2.19351354,1808.2,1808.1,4.8324]
[1745752771710,7.19351354,1808.2,1808.1,3.2078]
[1745752772010,8.05601354,1808.2,1808.1,3.2078]
[1745752772210,11.77801354,1808.2,1808.1,3.2078]
[1745752773015,6.77801354,1808.2,1808.1,3.2078]
[1745752773203,6.77801354,1808.2,1808.0,3.2078]
[1745752773405,2.4443,1808.1,1808.0,3.2078]
[1745752774214,1.647,1808.1,1808.0,3.2078]
[1745752774415,1.647,1808.1,1808.0,6.4829]
[1745752778407,2.19351354,1808.2,1808.0,6.4829]
[1745752778603,2.19351354,1808.2,1808.1,1.6941]
[1745752779014,3.80951354,1808.2,1808.1,1.6941]
[1745752779916,2.19351354,1808.2,1808.1,1.6941]
[1745752780210,0.7973,1808.3,1808.1,1.6941]
[1745752780211,3.521,1808.3,1808.1,1.6941]
[1745752780617,5.2201,1808.3,1808.1,1.6941]
[1745752780914,1.6991,1808.2,1808.1,1.6941]
[1745752781216,1.6991,1808.2,1808.0,4.8961]
[1745752781615,1.6991,1808.2,1808.0,6.5621]
[1745752782115,1.6991,1808.2,1808.0,10.2841]
[1745752783212,1.6991,1808.2,1808.1,1.6879]
[1745752783412,3.521,1808.3,1808.1,1.6879]
[1745752783819,5.2236,1808.3,1808.1,1.6879]
[1745752786020,1.7222,1808.2,1808.1,1.6879]
[1745752790125,3.521,1808.3,1808.1,1.6879]
[1745752790626,5.0877,1808.3,1808.1,1.6879]
[1745752799333,5.0877,1808.3,1808.2,3.2078]
[1745752802029,3.521,1808.3,1808.2,3.2078]
[1745752802231,3.521,1808.3,1808.2,6.9298]
[1745752803230,3.521,1808.3,1808.2,3.2078]
[1745752804634,3.521,1808.3,1808.1,1.6879]
[1745752804937,3.521,1808.3,1808.2,3.2078]
[1745752806138,2.85729865,1808.3,1808.2,3.2078]
[1745752808636,2.85729865,1808.3,1808.1,1.6879]
[1745752808838,2.85729865,1808.3,1808.2,3.2078]
[1745752813135,2.85729865,1808.3,1808.2,6.9298]
[1745752813638,2.85729865,1808.3,1808.2,3.722]
[1745752813839,2.85729865,1808.3,1808.2,6.9298]
[1745752814233,2.85729865,1808.3,1808.2,3.2078]
[1745752816141,2.85729865,1808.3,1808.2,6.9298]
[1745752816345,5.1585,1808.4,1808.2,6.9298]
[1745752816843,5.1585,1808.4,1808.3,2.4379]
[1745752819646,5.1585,1808.4,1808.3,0.8022]
[1745752821036,5.1585,1808.4,1808.3,2.3843]
[1745752823942,5.1585,1808.4,1808.0,3.2078]
[1745752823943,10.1585,1808.4,1808.0,3.2078]
[1745752824247,2.5456,1808.3,1808.0,3.2078]
[1745752824444,1.7029,1808.2,1808.0,3.2078]
[1745752824644,3.515,1808.1,1808.0,3.2078]
[1745752825041,10.2014,1808.1,1807.8,11.38995752]
[1745752825245,1.6864,1808.0,1807.8,11.38995752]
[1745752825450,2.5047,1808.0,1807.8,11.38995752]
[1745752825641,2.4852,1807.9,1807.8,11.38995752]
[1745752827845,2.4852,1807.9,1807.8,3.9992]
[1745752834953,3.515,1808.1,1807.8,3.9992]
[1745752835352,3.515,1808.1,1807.9,2.4872]
[1745752835552,5.2296,1808.1,1807.9,2.4872]
[1745752837349,1.7214,1808.0,1807.9,2.4872]
[1745752840246,1.7214,1808.0,1807.9,6.2092]
[1745752844569,1.614,1808.2,1807.9,6.2092]
[1745752844771,3.516,1808.1,1808.0,1.706]
[1745752845163,3.516,1808.1,1808.0,5.428]
[1745752847178,3.516,1808.3,1808.0,5.428]
[1745752847365,3.516,1808.3,1808.1,2.4099]
[1745752847671,3.516,1808.3,1808.2,1.5834]
[1745752847864,3.516,1808.3,1808.2,2.4086]
[1745752855371,3.516,1808.3,1808.1,0.8265]
[1745752855565,3.2646,1808.2,1807.9,3.2078]
[1745752855776,1.582,1808.1,1807.9,3.2078]